bitfinex/quotes_SOLUSD_20250902
["timestamp","ask_amount","ask_price","bid_price","bid_amount"]
[1756778609382,0.06,199.6,199.59,85.76247651]
[1756778609587,0.06,199.62,199.61,33.59559401]
[1756778609786,0.1,199.67,199.64,39.59559401]
[1756778609992,0.1,199.67,199.66,15.91276509]
[1756778610488,0.1,199.67,199.66,14.29559401]
[1756778610680,0.1,199.67,199.66,16.61276509]
[1756778611188,0.1,199.67,199.66,81.97276509]
[1756778611385,0.1,199.67,199.66,139.97276509]
[1756778612093,0.1,199.67,199.66,140.67276509]
[1756778612296,0.1,199.72,199.7,13.59559401]
[1756778612595,0.67,199.71,199.7,13.59559401]
[1756778612791,0.67,199.71,199.7,53.65559401]
[1756778613097,0.1,199.72,199.7,55.97276509]
[1756778613596,0.1,199.72,199.71,15.91276509]
[1756778614779,0.77,199.72,199.71,13.59559401]
[1756778614970,0.77,199.72,199.71,53.65559401]
[1756778616786,0.77,199.72,199.71,13.59559401]
[1756778617092,0.77,199.72,199.71,53.63559401]
[1756778617493,0.77,199.72,199.71,13.59559401]
[1756778617698,0.77,199.72,199.71,53.63559401]
[1756778621580,0.77,199.72,199.71,13.59559401]
[1756778622080,0.77,199.72,199.71,53.63559401]
[1756778623009,0.1,199.72,199.71,53.63559401]
[1756778623504,0.77,199.72,199.71,13.59559401]
[1756778623809,0.77,199.72,199.71,53.61559401]
[1756778624190,0.77,199.72,199.71,58.62285453]
[1756778625580,0.77,199.72,199.66,0.03]
[1756778625788,0.77,199.72,199.66,13.62559401]
[1756778626086,0.67,199.71,199.67,40.02]
[1756778626282,0.67,199.7,199.67,40.02]
[1756778626503,0.67,199.69,199.66,40.05]
[1756778626703,0.67,199.68,199.66,40.05]
[1756778627016,0.67,199.67,199.66,40.05]
[1756778627603,0.67,199.67,199.66,0.03]
[1756778628025,5.67826363,199.67,199.66,0.03]
[1756778629846,26.0,199.65,199.64,0.03]
[1756778630021,31.00876533,199.65,199.64,0.03]
[1756778630208,31.67876533,199.65,199.64,0.03]
[1756778630914,0.67,199.65,199.64,0.03]
[1756778631120,26.67,199.65,199.64,0.03]
[1756778631745,0.67,199.65,199.64,0.03]
[1756778632040,5.67876533,199.65,199.64,0.03]
[1756778634818,0.67,199.65,199.64,0.03]
[1756778635445,26.67,199.65,199.64,0.03]
[1756778636521,0.67,199.65,199.64,0.03]
[1756778638226,26.0,199.65,199.64,0.03]
[1756778638634,0.67,199.68,199.64,0.03]
[1756778638635,26.0,199.66,199.64,0.03]
[1756778639122,26.67,199.66,199.64,0.03]
[1756778639434,26.67,199.68,199.64,0.03]
[1756778639746,0.67,199.65,199.64,0.03]
[1756778640855,5.67876533,199.65,199.64,0.03]
[1756778641050,7.68664633,199.65,199.64,0.03]
[1756778641753,33.68664633,199.65,199.64,0.03]
[1756778642142,7.68664633,199.65,199.64,0.03]
[1756778642946,33.68664633,199.65,199.64,0.03]
[1756778643259,7.68664633,199.65,199.64,0.03]
[1756778646556,5.00876533,199.65,199.64,0.03]
[1756778647149,5.71876533,199.65,199.64,0.03]
[1756778647355,28.007578,199.66,199.64,0.03]
[1756778647539,2.007578,199.66,199.64,0.68]
[1756778647745,28.007578,199.66,199.64,0.68]
[1756778648060,26.0,199.66,199.64,0.68]
[1756778648361,26.0,199.66,199.64,0.03]
[1756778648761,26.0,199.65,199.64,0.68]
[1756778649070,133.8,199.69,199.65,0.65]
[1756778649275,160.51,199.69,199.64,0.03]
[1756778649582,165.51788712,199.69,199.64,0.68]
[1756778649745,164.80788712,199.69,199.65,0.65]
[1756778650069,164.80788712,199.69,199.64,0.03]
[1756778650070,159.8,199.69,199.66,0.65]
[1756778650374,5.10703137,199.72,199.67,0.65]
[1756778650559,26.0,199.69,199.65,5.0087349]
[1756778650761,26.0,199.69,199.67,0.65]
[1756778651262,26.0,199.69,199.68,0.65]
[1756778651853,26.71,199.69,199.64,0.03]
[1756778652069,26.0,199.69,199.64,0.03]
[1756778652277,26.0,199.69,199.65,0.65]
[1756778652776,26.71,199.69,199.65,0.65]
[1756778652959,26.0,199.69,199.64,13.62559401]
[1756778653161,26.0,199.69,199.66,0.65]
[1756778653674,26.06,199.69,199.66,0.65]
[1756778653877,26.06,199.69,199.64,14.27559401]
[1756778654174,26.06,199.69,199.65,0.65]
[1756778654354,26.06,199.69,199.65,5.65869564]
[1756778654555,26.06,199.69,199.65,0.65]
[1756778655873,0.71,199.68,199.64,0.03]
[1756778656276,26.0,199.65,199.64,0.03]
[1756778656772,26.71,199.65,199.64,0.03]
[1756778658479,31.71876533,199.65,199.64,0.03]
[1756778659988,5.00863686,199.66,199.64,0.03]
[1756778660487,0.71,199.65,199.64,0.03]
[1756778660664,5.00863686,199.66,199.64,0.03]
[1756778660856,5.71863686,199.66,199.64,0.03]
[1756778661068,0.71,199.65,199.64,0.03]
[1756778661761,31.71876533,199.65,199.64,0.03]
[1756778663668,33.72644433,199.65,199.64,0.03]
[1756778664064,37.08643148,199.65,199.64,0.03]
[1756778664568,37.08643148,199.65,199.62,0.03]
[1756778664776,26.0,199.61,199.6,0.03]
[1756778664963,65.96,199.61,199.6,0.03]
[1756778665164,66.67,199.61,199.6,0.03]
[1756778665376,68.678184,199.61,199.6,0.03]
[1756778666084,73.68795304,199.61,199.6,0.03]
[1756778666284,77.05078167,199.61,199.6,0.03]
[1756778666483,80.99274922,199.61,199.6,0.03]
[1756778667190,93.51717184,199.61,199.52,0.03]
[1756778667392,3.36282863,199.6,199.52,0.03]
[1756778667791,0.71,199.59,199.52,0.68]
[1756778668086,26.0,199.55,199.52,0.68]
[1756778668261,26.0,199.55,199.53,13.59559401]
[1756778668463,26.0,199.57,199.54,0.65]
[1756778668660,13.625594,199.6,199.55,0.65]
[1756778668860,44.96976904,199.61,199.55,0.65]
[1756778669083,26.0,199.6,199.55,0.65]
[1756778669285,26.0,199.6,199.52,0.03]
[1756778669482,26.71,199.6,199.53,13.59559401]
[1756778669666,26.71,199.6,199.54,0.65]
[1756778670171,26.0,199.56,199.52,0.68]
[1756778671283,26.0,199.56,199.53,0.65]
[1756778671585,26.0,199.56,199.54,0.65]
[1756778671790,26.0,199.58,199.55,0.65]
[1756778672490,26.0,199.58,199.53,0.65]
[1756778672678,26.0,199.58,199.54,0.65]
[1756778672879,26.0,199.58,199.55,0.65]
[1756778673989,26.0,199.58,199.53,13.59559401]
[1756778674284,26.71,199.58,199.53,14.24559401]
[1756778674490,31.72061804,199.58,199.53,14.24559401]
[1756778674786,31.72061804,199.58,199.54,0.65]
[1756778675488,26.71,199.58,199.53,13.59559401]
[1756778675684,26.71,199.58,199.54,0.67]
[1756778676192,26.71,199.58,199.53,13.59559401]
[1756778676399,26.71,199.58,199.53,14.26559401]
[1756778676591,31.72058634,199.58,199.53,14.26559401]
[1756778677069,0.71,199.57,199.52,0.03]
[1756778677389,26.0,199.54,199.52,0.03]
[1756778677584,0.71,199.53,199.52,0.03]
[1756778677974,4.07826967,199.53,199.52,0.03]
[1756778679768,9.09004734,199.53,199.52,0.03]
[1756778679996,11.09903734,199.53,199.52,0.03]
[1756778680198,7.73076767,199.53,199.52,0.03]
[1756778681794,2.00899,199.53,199.52,0.7]
[1756778682002,2.00899,199.53,199.52,14.29559401]
[1756778682304,5.00973569,199.62,199.52,17.91439722]
[1756778682511,5.00973569,199.62,199.55,13.59559401]
[1756778682697,26.0,199.61,199.56,0.67]
[1756778682882,26.0,199.61,199.55,13.59559401]
[1756778683195,5.00973569,199.62,199.57,0.67]
[1756778683401,0.71,199.64,199.58,0.67]
[1756778683778,17.65611093,199.65,199.58,0.67]
[1756778683979,70.9485563,199.66,199.58,0.67]
[1756778684188,0.71,199.64,199.55,13.59559401]
[1756778684396,0.71,199.63,199.55,13.59559401]
[1756778684608,0.71,199.62,199.55,13.59559401]
[1756778684773,0.71,199.62,199.56,0.67]
[1756778685170,5.71972062,199.62,199.56,0.67]
[1756778686086,5.71876533,199.65,199.57,13.59559401]
[1756778686386,5.71876533,199.65,199.58,0.67]
[1756778687898,5.71876533,199.65,199.59,13.59559401]
[1756778687899,0.71,199.65,199.59,13.59559401]
[1756778688100,3.36069905,199.66,199.6,0.67]
[1756778688295,0.06,199.62,199.6,0.67]
[1756778688680,0.06,199.62,199.61,14.26559401]
[1756778688899,0.06,199.62,199.61,22.89462314]
[1756778689406,0.06,199.62,199.61,27.90439218]
[1756778689584,0.06,199.62,199.61,14.26559401]
[1756778689899,0.06,199.62,199.59,13.59559401]
[1756778690109,0.06,199.62,199.58,0.67]
[1756778690478,0.06,199.62,199.6,13.59559401]
[1756778690786,0.06,199.62,199.6,22.22462314]
[1756778690992,0.06,199.62,199.61,14.26559401]
[1756778692275,0.06,199.62,199.61,13.59559401]
[1756778694477,0.06,199.62,199.61,14.26559401]
[1756778694889,0.06,199.62,199.61,13.59559401]
[1756778695102,0.06,199.62,199.61,14.26559401]
[1756778695487,0.06,199.62,199.61,25.06455032]
[1756778698212,0.06,199.62,199.61,19.27536305]
[1756778701301,0.06,199.62,199.61,25.06455032]
[1756778702804,0.06,199.62,199.61,14.26559401]
[1756778702997,0.06,199.62,199.61,59.28478128]
[1756778703192,0.06,199.62,199.61,64.29455032]
[1756778704213,0.06,199.62,199.61,64.96455032]
[1756778704424,1e-08,199.64,199.63,44.60486115]
[1756778704633,1e-08,199.64,199.63,50.89497513]
[1756778704799,1e-08,199.64,199.63,25.56497513]
[1756778704989,0.06,199.68,199.67,13.59559401]
[1756778705194,0.06,199.68,199.67,59.76560764]
[1756778705417,1e-08,199.68,199.67,86.44560764]
[1756778705921,1e-08,199.68,199.67,150.23479491]
[1756778706124,1e-08,199.68,199.67,149.73396855]
[1756778706813,1e-08,199.68,199.67,154.74223218]
[1756778707016,1e-08,199.68,199.67,133.636225]
[1756778707399,0.06,199.7,199.67,122.05785046]
[1756778707604,0.1,199.76,199.7,13.59559401]
[1756778707802,0.1,199.76,199.7,65.53770108]
[1756778708014,0.1,199.76,199.7,66.21770108]
[1756778708408,0.1,199.76,199.7,54.65634513]
[1756778708596,0.1,199.76,199.71,16.5878652]
[1756778708994,1e-08,199.74,199.73,39.59559401]
[1756778709217,0.06,199.78,199.77,39.59559401]
[1756778709426,0.06,199.78,199.77,81.7878652]
[1756778709616,0.06,199.78,199.77,82.4678652]
[1756778710201,0.06,199.78,199.77,41.9078652]
[1756778710501,0.06,199.78,199.77,81.7678652]
[1756778710702,0.06,199.78,199.77,82.4478652]
[1756778710916,0.06,199.78,199.77,87.45362182]
[1756778711505,0.06,199.78,199.77,90.91856935]
[1756778711900,0.06,199.78,199.77,51.05856935]
[1756778712153,0.06,199.78,199.77,90.23856935]
[1756778712605,0.06,199.78,199.77,50.37856935]
[1756778712920,0.06,199.78,199.77,90.23856935]
[1756778715339,0.77,199.78,199.77,13.59559401]
[1756778715634,0.77,199.78,199.77,53.43559401]
[1756778717414,0.06,199.78,199.77,53.43559401]
[1756778717617,0.77,199.78,199.77,53.43559401]
[1756778718336,0.06,199.78,199.77,64.21856935]
[1756778719121,0.06,199.78,199.77,64.89856935]
[1756778720131,0.06,199.78,199.77,19.28135063]
[1756778720316,0.06,199.78,199.77,64.21856935]
[1756778720841,0.06,199.78,199.77,64.89856935]
[1756778724129,0.06,199.78,199.77,122.89856935]
[1756778724828,0.06,199.78,199.77,64.89856935]
[1756778725533,0.06,199.8,199.79,39.59559401]
[1756778725733,0.06,199.8,199.79,90.19806824]
[1756778725938,0.06,199.8,199.79,90.87806824]
[1756778726940,0.06,199.82,199.81,19.37281273]
[1756778727244,0.06,199.82,199.81,59.17281273]
[1756778727428,0.06,199.82,199.81,59.85281273]
[1756778727634,0.06,199.82,199.81,64.85756724]
[1756778727832,0.06,199.82,199.81,122.85756724]
[1756778728032,0.06,199.82,199.81,83.05756724]
[1756778728236,0.06,199.82,199.81,122.85756724]
[1756778729123,1e-08,199.82,199.81,122.85756724]
[1756778729325,0.1,199.88,199.85,39.59559401]
[1756778729526,0.1,199.88,199.87,19.37281273]
[1756778729718,0.1,199.88,199.87,24.37606484]
[1756778729952,0.81,199.88,199.83,13.59559401]
[1756778730130,0.1,199.88,199.87,13.59559401]
[1756778730330,0.1,199.88,199.87,53.39559401]
[1756778730722,0.81,199.88,199.87,53.39559401]
[1756778732053,5.81300831,199.88,199.83,13.59559401]
[1756778732248,0.1,199.88,199.85,13.59559401]
[1756778732445,0.1,199.88,199.79,5.00514626]
[1756778732446,0.71,199.87,199.86,53.39559401]
[1756778732945,0.71,199.87,199.86,39.8]
[1756778733154,0.71,199.87,199.8,13.59559401]
[1756778733339,0.71,199.86,199.82,13.59559401]
[1756778733651,0.71,199.85,199.83,39.8]
[1756778733828,0.71,199.84,199.83,53.39559401]
[1756778734348,0.71,199.85,199.84,13.59559401]
[1756778734537,0.71,199.85,199.84,53.37559401]
[1756778737228,0.71,199.85,199.84,39.78]
[1756778738250,0.81,199.88,199.85,13.59559401]
[1756778738436,0.71,199.87,199.86,53.37559401]
[1756778739045,0.1,199.88,199.87,13.59559401]
[1756778739245,0.81,199.88,199.87,13.59559401]
[1756778740247,0.1,199.88,199.86,39.78]
[1756778740423,0.81,199.88,199.87,13.59559401]
[1756778740625,0.1,199.88,199.87,13.59559401]
[1756778741233,30.91153345,199.94,199.87,13.59559401]
[1756778741433,30.91153345,199.94,199.89,13.59559401]
[1756778741636,30.91153345,199.94,199.9,39.78]
[1756778742336,16.48967166,199.99,199.91,13.59559401]
[1756778742731,16.48967166,199.99,199.92,39.78]
[1756778743326,26.0,199.96,199.92,39.78]
[1756778743634,0.71,199.96,199.92,39.78]
[1756778743932,4.08394349,200.02,199.93,13.59559401]
[1756778744136,0.71,199.97,199.94,39.78]
[1756778744745,0.71,199.99,199.95,13.59559401]
[1756778744947,26.0,200.01,199.96,39.76]
[1756778745156,0.71,199.99,199.96,39.76]
[1756778745341,5.71030676,199.99,199.96,39.76]
[1756778745541,0.71,199.98,199.96,39.76]
[1756778745738,26.0,199.96,199.9,13.59559401]
[1756778745938,0.71,199.95,199.91,38.54]
[1756778746139,0.71,199.94,199.91,38.54]
[1756778746343,0.71,199.95,199.91,38.54]
[1756778746540,0.71,199.94,199.91,38.54]
[1756778746858,0.71,199.95,199.86,13.59559401]
[1756778747031,0.71,199.94,199.86,13.59559401]
[1756778747231,0.71,199.93,199.82,13.62559401]
[1756778747449,26.0,199.89,199.83,37.34]
[1756778747646,26.71,199.89,199.83,37.34]
[1756778748253,26.71,199.89,199.82,15.93571742]
[1756778748463,26.71,199.89,199.83,39.76]
[1756778749041,26.71,199.89,199.84,13.59559401]
[1756778749241,0.71,199.88,199.84,39.76]
[1756778749440,5.71325211,199.87,199.84,39.76]
[1756778749694,26.0,199.89,199.84,39.76]
[1756778749969,5.71312608,199.88,199.84,39.76]
[1756778750543,5.00312608,199.88,199.84,39.76]
[1756778750858,0.71,199.87,199.82,0.03]
[1756778751040,0.71,199.87,199.82,13.62559401]
[1756778751243,0.71,199.86,199.82,0.03]
[1756778751562,5.0040032,199.84,199.82,0.03]
[1756778751948,0.71,199.83,199.82,0.03]
[1756778752133,26.0,199.86,199.83,0.72]
[1756778752334,26.0,199.91,199.84,6.49827372]
[1756778752544,5.00175061,199.93,199.86,13.59559401]
[1756778752742,4.07332669,199.92,199.83,0.72]
[1756778752943,26.0,199.91,199.84,45.53827372]
[1756778753171,4.07361269,199.9,199.84,39.76]
[1756778753672,26.71,199.9,199.84,39.76]
[1756778754159,26.0,199.88,199.84,39.76]
[1756778754471,26.0,199.88,199.84,40.48]
[1756778754664,31.71256824,199.9,199.84,40.48]
[1756778754974,31.71256824,199.9,199.84,39.76]
[1756778755567,31.71256824,199.9,199.85,14.31559401]
[1756778755568,31.00256824,199.9,199.85,14.31559401]
[1756778755773,26.0,199.9,199.86,0.72]
[1756778755959,5.00202831,199.92,199.86,8.6048193]
[1756778756161,3.36414921,199.91,199.87,0.72]
[1756778756362,3.36414921,199.91,199.88,0.72]
[1756778756971,8.36643783,199.91,199.85,13.59559401]
[1756778757150,8.36643783,199.91,199.83,53.35559401]
[1756778757151,26.0,199.88,199.83,53.35559401]
[1756778757354,26.71,199.88,199.83,53.35559401]
[1756778757858,26.0,199.88,199.84,0.72]
[1756778758055,26.0,199.88,199.85,0.72]
[1756778758670,5.00228862,199.91,199.84,8.6048193]
[1756778758975,133.8,199.96,199.83,53.35559401]
[1756778758976,5.00075011,199.97,199.89,8.6048193]
[1756778759153,3.36382214,199.96,199.92,13.59559401]
[1756778759353,3.36382214,199.96,199.93,0.72]
[1756778760357,5.00057439,199.98,199.92,13.59559401]
[1756778760358,3.36382214,199.97,199.94,0.72]
[1756778761165,0.06,199.95,199.94,0.72]
[1756778761363,0.06,199.95,199.94,22.92041331]
[1756778761673,0.06,199.95,199.94,13.59559401]
[1756778762278,0.06,199.95,199.94,14.31559401]
[1756778762771,0.06,199.95,199.94,22.92041331]
[1756778763586,0.06,199.95,199.94,27.92191376]
[1756778764578,0.06,199.95,199.94,67.66191376]
[1756778765870,0.82,200.08,200.02,8.6048193]
[1756778766058,0.82,200.08,200.03,39.72]
[1756778766864,0.1,200.08,200.04,13.59559401]
[1756778767472,0.1,200.08,200.04,22.90041331]
[1756778767671,0.1,200.08,200.06,22.20041331]
[1756778767890,0.1,200.08,200.05,0.7]
[1756778767891,0.1,200.08,200.07,53.31559401]
[1756778768057,0.1,200.08,200.07,62.62041331]
[1756778768482,0.1,200.08,200.07,22.90041331]
[1756778768679,0.1,200.08,200.07,62.62041331]
[1756778768984,0.1,200.08,200.07,53.31559401]
[1756778769159,5.81800822,200.08,200.01,14.29559401]
[1756778769358,5.09800822,200.08,200.01,13.59559401]
[1756778769576,0.72,200.07,199.97,8.6048193]
[1756778769777,0.72,200.07,200.0,8.6048193]
[1756778769971,0.1,200.08,200.02,22.20041331]
[1756778770386,5.09809792,200.08,200.02,22.20041331]
[1756778770967,5.09809792,200.08,200.02,13.59559401]
[1756778772505,0.1,200.08,200.03,39.72]
[1756778772797,0.1,200.08,200.05,22.20041331]
[1756778773166,0.1,200.08,200.06,0.7]
[1756778773362,0.72,200.07,200.03,8.6048193]
[1756778773569,0.1,200.08,200.04,39.7]
[1756778773777,5.09809336,200.08,200.04,39.7]
[1756778773978,0.72,200.07,199.99,8.6048193]
[1756778774171,0.72,200.06,200.01,13.59559401]
[1756778774375,5.09809336,200.08,200.02,39.7]
[1756778774580,0.72,200.07,200.02,39.7]
[1756778775168,0.72,200.07,200.02,40.4]
[1756778775778,4.99850044,200.06,200.02,39.7]
[1756778777179,0.1,200.08,200.02,40.4]
[1756778777180,5.09822384,200.08,200.02,40.4]
[1756778777377,5.09822384,200.08,200.02,39.7]
[1756778777596,0.72,200.07,200.02,39.7]
[1756778777771,5.09822384,200.08,200.02,40.4]
[1756778778175,5.09822384,200.08,200.02,48.3048193]
[1756778778395,5.09822384,200.08,200.03,0.7]
[1756778778578,0.1,200.08,200.03,0.7]
[1756778778784,0.1,200.08,200.04,0.7]
[1756778779093,0.1,200.08,200.05,13.59559401]
[1756778779398,0.1,200.08,200.07,22.20041331]
[1756778780095,0.1,200.08,200.07,22.90041331]
[1756778780294,0.1,200.08,200.07,62.60041331]
[1756778780676,0.1,200.08,200.07,22.90041331]
[1756778780999,0.1,200.08,200.07,62.60041331]
[1756778781498,0.1,200.08,200.07,67.59866392]
[1756778782393,0.1,200.08,200.07,27.89866392]
[1756778782602,0.1,200.08,200.07,67.59866392]
[1756778786697,0.1,200.08,200.07,13.59559401]
[1756778786898,0.82,200.08,200.07,39.68]
[1756778787270,0.1,200.08,200.05,39.68]
[1756778788097,0.1,200.08,200.06,14.29559401]
[1756778788395,0.1,200.08,200.07,53.27559401]
[1756778791613,0.1,200.08,200.07,58.97384462]
[1756778791782,0.1,200.08,200.07,57.57822495]
[1756778792901,0.1,200.08,200.07,53.97559401]
[1756778793204,5.81805484,200.08,200.07,39.68]
[1756778793703,5.81805484,200.08,200.02,13.59559401]
[1756778793901,5.81805484,200.08,200.03,39.68]
[1756778794110,0.72,200.07,200.03,39.68]
[1756778794285,0.72,200.06,200.04,39.68]
[1756778795288,5.71854429,200.06,200.04,39.68]
[1756778795510,0.72,200.06,200.04,39.68]
[1756778795808,5.71853331,200.06,200.04,39.68]
[1756778796105,4.99853331,200.06,200.04,39.68]
[1756778796404,26.0,200.07,200.03,39.68]
[1756778796581,0.1,200.08,200.04,9.30950214]
[1756778796788,0.1,200.08,200.05,48.26950214]
[1756778797200,0.1,200.08,200.05,48.98950214]
[1756778797397,0.1,200.08,200.06,13.59559401]
[1756778797617,0.1,200.08,200.07,39.68]
[1756778798408,0.1,200.08,200.07,40.4]
[1756778798701,0.1,200.08,200.07,39.68]
[1756778801279,26.77,200.08,200.03,13.59559401]
[1756778801492,31.76803665,200.08,200.04,39.68]
[1756778802684,26.77,200.08,200.04,39.68]
[1756778802884,0.1,200.08,200.05,0.72]
[1756778803097,0.1,200.08,200.06,40.4]
[1756778803912,0.1,200.08,200.07,9.30950214]
[1756778804202,0.1,200.08,200.07,22.90509615]
[1756778804804,0.1,200.08,200.07,27.90334676]
[1756778805201,0.1,200.08,200.07,19.31384462]
[1756778805507,0.1,200.08,200.07,27.90334676]
[1756778805894,0.1,200.08,200.07,53.90334676]
[1756778807003,0.1,200.08,200.07,111.90334676]
[1756778807191,0.1,200.08,200.07,45.31384462]
[1756778807395,0.1,200.08,200.07,93.60334676]
[1756778809204,1e-08,200.08,200.07,67.60334676]
[1756778810217,1e-08,200.08,200.07,85.90334676]
[1756778810411,1e-08,200.08,200.07,125.56334676]
[1756778811413,1e-08,200.08,200.07,85.90334676]
[1756778811598,1e-08,200.08,200.07,67.56334676]
[1756778813591,1e-08,200.08,200.07,64.73156128]
[1756778814611,1e-08,200.08,200.07,122.73156128]
[1756778815221,67.3301633,200.14,200.11,13.59559401]
[1756778815400,67.3301633,200.14,200.13,24.35006278]
[1756778815597,67.3301633,200.14,200.13,64.73006278]
[1756778817117,67.3301633,200.14,200.13,24.35006278]
[1756778817328,67.3301633,200.14,200.13,64.01006278]
[1756778818817,67.3301633,200.14,200.13,90.73006278]
[1756778818818,37.64749125,200.14,200.13,90.73006278]
[1756778819194,37.64749125,200.14,200.13,84.97234612]
[1756778819416,1e-08,200.14,200.13,87.27430171]
[1756778820410,0.67,200.24,200.22,13.59559401]
[1756778820718,0.67,200.24,200.23,53.25559401]
[1756778821506,0.67,200.24,200.2,5.75449548]
[1756778821745,0.67,200.23,200.21,39.66]
[1756778821917,4.99315474,200.28,200.22,13.59559401]
[1756778822240,0.67,200.25,200.23,39.66]
[1756778822532,0.67,200.24,200.23,39.66]
[1756778822833,0.67,200.24,200.23,53.25559401]
[1756778823031,26.0,200.29,200.24,13.59559401]
[1756778823236,0.67,200.27,200.25,39.66]
[1756778823606,0.67,200.26,200.25,53.25559401]
[1756778823812,0.67,200.26,200.25,39.64]
[1756778824530,0.67,200.28,200.25,39.64]
[1756778824732,30.99227669,200.31,200.25,39.64]
[1756778824912,0.67,200.28,200.25,39.64]
[1756778825230,0.69,200.27,200.25,39.64]
[1756778826007,26.69,200.29,200.26,13.59559401]
[1756778826314,26.69,200.29,200.27,39.64]
[1756778826622,0.69,200.28,200.27,39.64]
[1756778827412,26.0,200.29,200.27,39.64]
[1756778827615,0.69,200.29,200.27,39.64]
[1756778828404,0.69,200.28,200.27,39.64]
[1756778829725,26.0,200.29,200.27,39.64]
[1756778829931,26.69,200.29,200.27,39.64]
[1756778830441,45.14223456,200.41,200.28,13.59559401]
[1756778830442,26.0,200.3,200.28,13.59559401]
[1756778830611,26.0,200.3,200.29,39.64]
[1756778831032,0.69,200.3,200.29,39.64]
[1756778831849,26.0,200.3,200.29,39.64]
[1756778832016,0.69,200.33,200.29,39.64]
[1756778832335,0.69,200.32,200.29,39.64]
[1756778832719,31.09151256,200.35,200.29,39.64]
[1756778832925,0.69,200.34,200.29,39.64]
[1756778833125,0.69,200.33,200.29,39.64]
[1756778833318,0.69,200.32,200.29,39.64]
[1756778834828,4.99156426,200.34,200.29,13.59559401]
[1756778834829,0.69,200.31,200.29,13.59559401]
[1756778835029,0.69,200.3,200.27,39.64]
[1756778835220,0.69,200.29,200.27,39.64]
[1756778835545,26.69,200.31,200.27,39.64]
[1756778836052,0.69,200.31,200.27,39.64]
[1756778836354,0.69,200.33,200.28,13.59559401]
[1756778836545,0.69,200.32,200.29,39.64]
[1756778837045,30.99155571,200.34,200.29,39.64]
[1756778837229,0.69,200.31,200.29,39.64]
[1756778837951,26.69,200.33,200.29,39.64]
[1756778838145,0.69,200.32,200.29,39.64]
[1756778838350,4.99201384,200.32,200.29,39.64]
[1756778838544,0.69,200.31,200.29,39.64]
[1756778838926,0.69,200.3,200.19,13.59559401]
[1756778839154,0.69,200.29,200.24,13.59559401]
[1756778839354,0.69,200.29,200.25,39.62]
[1756778839953,0.69,200.29,200.18,43.39159702]
[1756778839954,0.69,200.28,200.21,13.59559401]
[1756778840133,0.69,200.27,200.22,39.62]
[1756778840333,0.69,200.29,200.23,0.72]
[1756778840640,26.69,200.3,200.23,0.72]
[1756778840823,148.807129,200.34,200.24,19.35008949]
[1756778840824,26.0,200.31,200.24,19.35008949]
[1756778841029,26.69,200.31,200.26,13.59559401]
[1756778841228,0.69,200.3,200.26,13.59559401]
[1756778842155,0.69,200.29,200.27,39.62]
[1756778842328,0.69,200.28,200.27,39.62]
[1756778843157,5.68264895,200.3,200.27,39.62]